bitfinex-derivatives/quotes_SOLF0:USTF0_20240904
["timestamp","ask_amount","ask_price","bid_price","bid_amount"]
[1725408477547,3.96395568,127.89,127.87,3.9106]
[1725408478654,3.96395568,127.89,127.86,0.05144007]
[1725408478655,0.05375568,127.89,127.88,3.9105]
[1725408480442,0.05375568,127.89,127.86,0.05144007]
[1725408480854,3.9108,127.87,127.86,0.05144007]
[1725408481853,30.02,127.87,127.79,1.4293]
[1725408482047,3.90913324,127.86,127.79,1.4293]
[1725408482350,3.9123,127.82,127.79,1.4293]
[1725408482649,0.05454536,127.82,127.79,1.48292423]
[1725408482849,0.05454536,127.82,127.8,3.9127]
[1725408483443,0.05454536,127.82,127.79,0.05362423]
[1725408484436,3.9139,127.77,127.74,3.9147]
[1725408484841,30.02,127.81,127.71,30.02]
[1725408485446,0.05712507,127.77,127.75,0.05010545]
[1725408486043,3.9141,127.76,127.75,0.05010545]
[1725408486649,30.02,127.76,127.68,5.35270887]
[1725408486848,30.02,127.73,127.67,3.61440678]
[1725408487054,3.9166,127.68,127.67,3.61440678]
[1725408487758,3.9166,127.68,127.65,28.9152543]
[1725408487759,3.96658313,127.69,127.66,0.05026993]
[1725408489338,3.96658313,127.69,127.66,3.96746993]
[1725408489944,3.9167,127.68,127.66,0.05026993]
[1725408490245,0.05018313,127.69,127.66,0.05026993]
[1725408491047,3.9169,127.67,127.66,0.05026993]
[1725408491253,0.05018313,127.69,127.66,0.05026993]
[1725408491452,3.96648313,127.69,127.66,0.05026993]
[1725408491652,0.05018313,127.69,127.66,0.05026993]
[1725408492155,0.05018313,127.69,127.66,3.96726993]
[1725408493058,0.05018313,127.69,127.66,0.05026993]
[1725408493255,0.05018313,127.69,127.67,30.02]
[1725408493563,2.9901,127.76,127.67,30.02]
[1725408494151,30.02,127.73,127.62,6.83166156]
[1725408494458,30.02,127.73,127.62,36.85166156]
[1725408494659,3.9729822,127.69,127.66,0.05807008]
[1725408495358,0.0565822,127.69,127.66,3.97507008]
[1725408496359,0.0565822,127.69,127.66,0.05807008]
[1725408497161,0.0565822,127.69,127.66,30.07807008]
[1725408497663,0.0565822,127.69,127.67,1.4054]
[1725408497853,0.0565822,127.69,127.68,3.9166]
[1725408498054,0.0565822,127.69,127.66,30.07807008]
[1725408498249,0.0565822,127.69,127.66,0.05807008]
[1725408498563,0.0565822,127.69,127.68,3.9166]
[1725408499857,0.0565822,127.69,127.66,0.05807008]
[1725408500259,3.9166,127.68,127.66,0.05807008]
[1725408500760,0.0565822,127.69,127.66,0.05807008]
[1725408500958,3.9168,127.68,127.66,0.05807008]
[1725408501160,0.0565822,127.69,127.66,0.05807008]
[1725408501663,3.9730822,127.69,127.66,3.97517008]
[1725408503668,0.0565822,127.69,127.67,3.9169]
[1725408504072,0.0565822,127.69,127.66,0.05807008]
[1725408505365,0.0565822,127.69,127.66,3.97507008]
[1725408505569,0.0565822,127.69,127.66,0.05807008]
[1725408505774,3.9169,127.67,127.66,0.05807008]
[1725408505973,7.73758596,127.67,127.66,0.05807008]
[1725408506171,33.84068596,127.67,127.58,1.376]
[1725408506469,3.9178,127.64,127.62,3.9184]
[1725408506669,33.84068596,127.67,127.62,3.9184]
[1725408507060,0.05988004,127.66,127.63,3.96848548]
[1725408507765,0.05988004,127.66,127.63,0.05048548]
[1725408508474,3.9177,127.65,127.63,0.05048548]
[1725408510680,3.9177,127.65,127.56,1.3785]
[1725408510681,30.02,127.65,127.56,1.3785]
[1725408510877,1.3632,127.64,127.56,31.3985]
[1725408511571,0.05239205,127.61,127.6,3.9189]
[1725408514778,3.917,127.67,127.59,30.02]
[1725408514982,5.49176265,127.68,127.6,1.5015]
[1725408515280,3.9174,127.66,127.63,3.918]
[1725408515481,3.9174,127.66,127.6,1.5015]
[1725408515684,5.49176265,127.68,127.6,1.5015]
[1725408515875,0.05955043,127.64,127.63,3.9181]
[1725408516073,0.05379272,127.65,127.62,0.05312615]
[1725408517281,3.97139272,127.65,127.63,3.918]
[1725408517482,6.26,127.64,127.63,3.918]
[1725408518886,6.26,127.64,127.53,7.8422]
[1725408519183,3.92454223,127.63,127.55,36.92458171]
[1725408519684,3.92454223,127.63,127.55,36.84464894]
[1725408519879,0.05668066,127.61,127.58,0.05661475]
[1725408520179,4.04979267,127.61,127.58,0.05661475]
[1725408520384,0.05668066,127.61,127.58,0.05661475]
[1725408520779,7.79628866,127.61,127.58,3.97611475]
[1725408520991,3.87738866,127.61,127.58,0.05661475]
[1725408521284,3.9192,127.6,127.58,0.05661475]
[1725408522181,3.9193,127.59,127.58,0.05661475]
[1725408525083,30.07668066,127.61,127.58,0.05661475]
[1725408525291,0.05668066,127.61,127.59,3.9193]
[1725408525478,0.05668066,127.61,127.58,0.05661475]
[1725408526777,0.05668066,127.61,127.59,3.9192]
[1725408527587,0.05668066,127.61,127.6,3.919]
[1725408527980,0.05668066,127.61,127.58,0.05661475]
[1725408529181,0.05668066,127.61,127.59,3.9193]
[1725408529883,0.05668066,127.61,127.6,3.919]
[1725408530186,0.05668066,127.61,127.58,0.05661475]
[1725408530992,0.05668066,127.61,127.59,3.9192]
[1725408531287,0.05668066,127.61,127.58,0.05661475]
[1725408531681,0.05668066,127.61,127.6,3.919]
[1725408532087,6.31668066,127.61,127.6,3.919]
[1725408534191,227.0,127.72,127.6,24.08]
[1725408534192,24.08,127.69,127.6,24.08]
[1725408534396,24.08,127.67,127.59,3.91740447]
[1725408534587,3.9178,127.65,127.61,3.9186]
[1725408534785,3.9178,127.65,127.56,12.0297]
[1725408535084,0.05165665,127.62,127.59,0.05292905]
[1725408535894,1.61,127.61,127.6,3.919]
[1725408536094,0.05165665,127.62,127.59,0.05292905]
[1725408536495,7.80462326,127.67,127.6,24.08]
[1725408536686,3.88762326,127.67,127.56,15.97179152]
[1725408536890,24.08,127.68,127.58,24.08]
[1725408537191,27.92830946,127.68,127.58,24.08]
[1725408537591,0.04927351,127.64,127.62,0.05671178]
[1725408537892,0.04927351,127.64,127.63,3.918]
[1725408538493,0.04927351,127.64,127.62,3.97501178]
[1725408540802,0.04927351,127.64,127.63,3.9181]
[1725408543401,3.9164,127.69,127.66,3.917]
[1725408543598,24.08,127.71,127.63,25.5836]
[1725408543798,24.08,127.73,127.64,1.4607]
[1725408544102,24.08,127.73,127.65,24.08]
[1725408544398,0.05703582,127.7,127.68,0.0546672]
[1725408544706,0.05703582,127.7,127.69,3.9161]
[1725408545798,4.373,127.78,127.68,24.08]
[1725408545993,27.95939424,127.79,127.71,24.08]
[1725408546301,27.9933,127.79,127.75,3.9142]
[1725408546494,27.9933,127.79,127.71,24.08]
[1725408547003,0.05405037,127.76,127.75,3.9142]
[1725408547595,0.05405037,127.76,127.74,3.97074273]
[1725408549403,0.05405037,127.76,127.75,3.9144]
[1725408551609,0.05405037,127.76,127.74,0.05614273]
[1725408552207,30.14405037,127.76,127.74,0.05614273]
[1725408553110,3.9144,127.75,127.74,0.05614273]
[1725408553410,0.05405037,127.76,127.74,3.97074273]
[1725408554513,3.96835037,127.76,127.74,0.05614273]
[1725408556913,3.96835037,127.76,127.74,3.97084273]
[1725408557819,0.05405037,127.76,127.75,3.9144]
[1725408561717,3.93638043,127.8,127.74,30.14614273]
[1725408561920,30.09,127.82,127.74,30.14614273]
[1725408561921,30.09,127.82,127.74,4.05576832]
[1725408562116,30.09,127.82,127.74,3.99962559]
[1725408562307,30.09,127.82,127.72,30.09]
[1725408562308,3.9133,127.79,127.72,30.09]
[1725408562713,3.913,127.8,127.77,3.9136]
[1725408562921,3.913,127.8,127.77,3.96608536]
[1725408563932,3.9133,127.79,127.77,3.96608536]
[1725408565132,3.9131,127.8,127.77,3.96608536]
[1725408565538,33.9416508,127.82,127.77,3.96608536]
[1725408565932,33.0399,127.84,127.77,0.05248536]
[1725408566134,3.89058233,127.83,127.77,0.05248536]
[1725408566437,3.9119,127.84,127.77,0.05248536]
[1725408566632,3.9119,127.84,127.81,3.9124]
[1725408566933,3.9119,127.84,127.81,3.97244266]
[1725408567132,3.9116,127.85,127.81,0.06004266]
[1725408567335,32.8688,127.88,127.81,0.06004266]
[1725408567727,3.9115,127.85,127.81,0.06004266]
[1725408568436,3.9115,127.85,127.83,3.9119]
[1725408569147,3.9109,127.87,127.81,0.06004266]
[1725408569440,3.9109,127.87,127.83,0.05769447]
[1725408569743,30.09,127.9,127.83,0.05769447]
[1725408569944,25.496,127.91,127.83,0.05769447]
[1725408570137,25.496,127.91,127.86,0.05827325]
[1725408570939,25.496,127.91,127.86,3.96917325]
[1725408571541,24.02,127.89,127.86,0.05827325]
[1725408571839,3.9105,127.88,127.86,0.05827325]
[1725408572039,24.02,127.89,127.86,0.05827325]
[1725408572539,3.9108,127.87,127.86,0.05827325]
[1725408574242,24.02,127.89,127.86,0.05827325]
[1725408574436,25.496,127.91,127.86,0.05827325]
[1725408575238,3.9107,127.88,127.86,0.05827325]
[1725408575538,3.91,127.9,127.87,3.9108]
[1725408576745,24.02,127.91,127.86,3.96917325]
[1725408576940,24.02,127.91,127.86,0.05827325]
[1725408578544,3.9108,127.87,127.86,0.05827325]
[1725408580634,24.02,127.94,127.86,0.05827325]
[1725408580839,24.02,127.94,127.89,0.05283406]
[1725408581040,3.9098,127.91,127.89,0.05283406]
[1725408581344,24.02,127.94,127.89,0.05283406]
[1725408581541,3.9091,127.93,127.91,3.9094]
[1725408581740,24.02,127.94,127.89,0.05283406]
[1725408582339,3.9097,127.91,127.89,0.05283406]
[1725408582745,24.02,127.94,127.89,0.05283406]
[1725408583044,3.9098,127.9,127.89,0.05283406]
[1725408584751,24.02,127.91,127.81,25.4029]
[1725408584951,24.02,127.89,127.81,25.4029]
[1725408585142,24.02,127.89,127.83,3.9119]
[1725408585339,3.9115,127.85,127.83,3.9119]
[1725408585945,3.9681313,127.85,127.83,3.96846404]
[1725408586149,3.9117,127.84,127.83,0.05656404]
[1725408587942,3.9681313,127.85,127.83,0.05656404]
[1725408588145,0.0566313,127.85,127.83,0.05656404]
[1725408588339,25.4796,127.94,127.84,24.02]
[1725408588644,3.91,127.9,127.87,3.9106]
[1725408589458,3.91,127.9,127.87,3.96000693]
[1725408589944,25.4796,127.94,127.87,3.96000693]
[1725408589945,3.9101,127.89,127.87,3.96000693]
[1725408590251,24.02,127.92,127.87,0.04940693]
[1725408590452,3.9104,127.89,127.87,0.04940693]
[1725408591144,3.91,127.9,127.87,0.04940693]
[1725408591652,3.91,127.9,127.88,3.9104]
[1725408593749,31.4796,127.94,127.87,3.96000693]
[1725408594847,31.4796,127.94,127.87,0.04940693]
[1725408595049,30.02,127.92,127.87,0.04940693]
[1725408595949,1.4596,127.94,127.87,0.04940693]
[1725408595950,31.4796,127.94,127.87,0.04940693]
[1725408596452,30.02,127.92,127.87,0.04940693]
[1725408596655,30.02,127.9,127.87,0.04940693]
[1725408596965,30.02,127.9,127.82,3.9121]
[1725408597151,1.3576,127.89,127.81,1.4856]
[1725408597457,3.9109,127.87,127.84,3.9115]
[1725408597843,3.96112847,127.87,127.84,3.96948914]
[1725408598350,3.9111,127.86,127.84,3.96948914]
[1725408600550,0.05022847,127.87,127.84,0.05798914]
[1725408601855,0.05022847,127.87,127.84,4.003944]
[1725408602254,0.05022847,127.87,127.86,3.9111]
[1725408604145,4.00267772,127.93,127.91,3.9092]
[1725408604349,3.9086,127.94,127.89,30.02]
[1725408604558,3.96160255,127.96,127.89,33.86620087]
[1725408604758,3.96160255,127.96,127.92,3.9091]
[1725408604961,3.9085,127.95,127.92,3.9091]
[1725408605263,3.9085,127.95,127.92,3.96400892]
[1725408606060,7.86970255,127.96,127.93,3.9088]
[1725408607656,34.3774,127.99,127.92,0.05490892]
[1725408608064,30.02,127.97,127.92,0.05490892]
[1725408608359,3.9089,127.93,127.92,0.05490892]
[1725408609059,30.02,127.95,127.87,3.95021535]
[1725408609659,3.9099,127.9,127.87,7.86081535]
[1725408610169,3.96367269,127.9,127.87,7.91401917]
[1725408610867,3.9102,127.89,127.87,3.96380382]
[1725408611260,0.05377269,127.9,127.87,3.96380382]
[1725408611460,3.96367269,127.9,127.87,3.96380382]
[1725408611863,3.96367269,127.9,127.88,3.9104]
[1725408612062,0.05377269,127.9,127.87,0.05320382]
[1725408612459,0.05377269,127.9,127.88,7.73144255]
[1725408612659,0.05377269,127.9,127.88,3.82114255]
[1725408612962,0.05377269,127.9,127.89,27.9201]
[1725408613163,0.05377269,127.9,127.89,31.86560273]
[1725408613659,0.05377269,127.9,127.88,3.9102]
[1725408614166,0.05377269,127.9,127.89,7.85325631]
[1725408616275,0.05377269,127.9,127.88,3.9103]
[1725408616460,0.05377269,127.9,127.87,0.05320382]
[1725408616659,24.06377269,127.9,127.87,0.05320382]
[1725408617266,3.9105,127.88,127.87,0.05320382]
[1725408617468,0.05377269,127.9,127.87,0.05320382]
[1725408617669,0.05377269,127.9,127.87,24.06320382]
[1725408617863,0.05377269,127.9,127.89,3.9101]
[1725408619858,0.05377269,127.9,127.87,0.05320382]
[1725408620470,0.05377269,127.9,127.8,3.9127]
[1725408620471,30.02,127.88,127.8,3.9127]
[1725408620764,30.02,127.88,127.79,4.3078]
[1725408620765,3.9129,127.8,127.79,4.3078]
[1725408620967,32.8884,127.87,127.78,7.78834599]
[1725408621172,32.8884,127.87,127.78,3.87484599]
[1725408621471,0.05358194,127.84,127.81,0.05732807]
[1725408622064,0.05358194,127.84,127.83,3.912]
[1725408622768,0.05358194,127.84,127.81,0.05732807]
[1725408624174,3.9122,127.83,127.81,0.05732807]
[1725408625277,3.96538194,127.84,127.81,0.05732807]
[1725408625674,3.912,127.83,127.81,0.05732807]
[1725408626969,0.05358194,127.84,127.81,0.05732807]
[1725408627480,30.07358194,127.84,127.81,0.05732807]
[1725408627665,30.02,127.82,127.65,14.79757787]
[1725408627980,30.02,127.76,127.67,1.3701]
[1725408628170,30.02,127.76,127.69,3.9162]
[1725408628366,30.02,127.76,127.67,1.3701]
[1725408628868,0.05413185,127.73,127.7,0.05178305]
[1725408629270,3.9157,127.71,127.7,0.05178305]
[1725408629476,0.05413185,127.73,127.7,0.05178305]
[1725408630485,0.05413185,127.73,127.7,30.07178305]
[1725408630978,0.05413185,127.73,127.72,3.9154]
[1725408632383,32.9299,127.81,127.75,3.9143]
[1725408632773,3.9137,127.78,127.74,3.9145]
[1725408633174,3.9137,127.78,127.72,33.86933955]
[1725408633379,0.05376603,127.76,127.74,0.05247971]
[1725408633688,0.05376603,127.76,127.75,3.9144]
[1725408636582,0.05376603,127.76,127.74,0.05247971]
[1725408637081,3.96796603,127.76,127.74,0.05247971]
[1725408638573,3.96796603,127.76,127.74,3.96717971]
[1725408638780,0.05376603,127.76,127.74,3.96717971]
[1725408639688,0.05376603,127.76,127.75,3.9144]
[1725408645387,31.4908,127.85,127.79,3.9131]
[1725408645578,31.4908,127.85,127.77,3.99938244]
[1725408645886,31.4908,127.85,127.76,3.9139]
[1725408645887,30.02,127.83,127.76,3.9139]
[1725408646080,30.02,127.81,127.73,3.8909737]
[1725408646281,3.9143,127.76,127.71,2.7565]
[1725408646475,0.05752126,127.75,127.73,3.9149]
[1725408646682,0.05752126,127.75,127.72,30.07864696]
[1725408646893,0.05752126,127.75,127.74,3.9147]
[1725408647180,0.05752126,127.75,127.74,7.84277099]
[1725408647384,0.05752126,127.75,127.74,3.9147]
[1725408647978,0.05752126,127.75,127.74,7.82045907]
[1725408650375,0.05752126,127.75,127.72,0.05864696]
[1725408650788,0.05752126,127.75,127.72,4.03454736]
[1725408650976,0.05752126,127.75,127.73,3.9149]
[1725408652483,0.05752126,127.75,127.74,3.9147]
[1725408656787,0.05752126,127.75,127.72,4.03454736]
[1725408658186,0.05752126,127.75,127.74,3.9147]
[1725408659282,4.3159,127.82,127.79,3.9132]
[1725408659588,4.3159,127.82,127.75,30.02]
[1725408659889,4.3159,127.82,127.79,3.913]
[1725408660387,8.2285,127.82,127.79,3.96300082]
[1725408660784,30.02,127.84,127.79,0.05000082]
[1725408661581,3.9127,127.81,127.79,0.05000082]
[1725408661783,30.02,127.84,127.79,0.05000082]
[1725408661987,30.02,127.82,127.74,3.95664589]
[1725408662187,3.9132,127.8,127.71,32.7765]
[1725408662398,3.9132,127.8,127.77,3.9137]
[1725408662886,3.9134,127.79,127.76,3.9139]
[1725408663087,3.9134,127.79,127.77,0.05233138]
[1725408666298,3.9134,127.79,127.77,3.96613138]
[1725408667190,0.05569288,127.8,127.77,3.96613138]
[1725408667395,0.05569288,127.8,127.79,3.9132]
[1725408668793,0.05569288,127.8,127.77,30.07233138]
[1725408669088,0.05569288,127.8,127.77,0.05233138]
[1725408671795,0.05569288,127.8,127.79,3.9132]
[1725408674103,0.05569288,127.8,127.79,33.9332]
[1725408674388,3.9114,127.86,127.79,30.02]
[1725408674987,3.9114,127.86,127.83,3.9119]
[1725408675394,3.9114,127.86,127.83,3.96492816]
[1725408675895,3.9109,127.87,127.83,3.96492816]
[1725408676795,3.9109,127.87,127.84,3.9116]
[1725408677289,3.9111,127.86,127.83,3.96482816]
[1725408679701,3.95070802,127.88,127.83,0.05302816]
[1725408680286,3.9109,127.87,127.84,3.9115]
[1725408681505,3.9109,127.87,127.83,3.96482816]
[1725408682004,3.9111,127.86,127.83,3.96482816]
[1725408683002,3.9115,127.85,127.83,0.05302816]
[1725408683304,30.02,127.84,127.75,31.3809]
[1725408683503,30.02,127.84,127.78,3.9133]
[1725408683504,3.9127,127.81,127.78,3.9133]
[1725408684403,3.96375588,127.81,127.78,3.96370652]
[1725408685202,3.9129,127.8,127.78,3.96370652]
[1725408685508,0.05105588,127.81,127.78,3.96370652]
[1725408687211,0.05105588,127.81,127.78,0.05040652]
[1725408687610,0.05105588,127.81,127.79,3.913]
[1725408688313,0.05105588,127.81,127.78,0.05040652]
[1725408688810,30.12105588,127.81,127.78,0.05040652]
[1725408689013,3.9129,127.8,127.78,0.05040652]
[1725408689314,30.12105588,127.81,127.78,0.05040652]
[1725408689715,3.9129,127.8,127.78,0.05040652]
[1725408689915,30.12105588,127.81,127.78,0.05040652]
[1725408690316,3.9129,127.8,127.78,0.05040652]
[1725408691119,0.05105588,127.81,127.78,0.05040652]
[1725408692819,0.05105588,127.81,127.79,3.9129]
[1725408693208,0.05105588,127.81,127.78,0.05040652]
[1725408693516,3.96385588,127.81,127.78,3.96370652]
[1725408694718,3.9129,127.8,127.78,3.96370652]
[1725408696915,3.96385588,127.81,127.78,3.96370652]
[1725408697522,3.96385588,127.81,127.79,3.9132]
[1725408698617,0.05105588,127.81,127.8,3.9129]
[1725408703621,3.9113,127.86,127.84,3.9117]
[1725408703819,3.9113,127.86,127.81,3.84671903]
[1725408704026,3.9113,127.86,127.83,3.9118]
[1725408704526,3.9113,127.86,127.83,3.97033032]
[1725408704915,5.3152,127.87,127.83,0.05853032]
[1725408705121,1.4044,127.87,127.83,0.05853032]
[1725408705318,30.07,127.89,127.83,0.05853032]
[1725408705519,7.74703759,127.88,127.85,3.9112]
[1725408705715,3.83633759,127.88,127.85,3.96769922]
[1725408705921,27.86633759,127.88,127.85,3.96769922]
[1725408706227,3.9108,127.87,127.85,3.96769922]
[1725408706427,24.03,127.88,127.85,3.96769922]
[1725408706725,24.03,127.88,127.85,0.05649922]
[1725408707630,24.07983916,127.87,127.78,1.3628]
[1725408707825,24.03,127.85,127.78,1.3628]
[1725408708127,3.9115,127.85,127.82,3.912]
[1725408708419,24.03,127.86,127.81,3.87584346]
[1725408708624,0.05419453,127.85,127.82,0.05608283]
[1725408709028,0.05419453,127.85,127.83,3.9118]
[1725408709326,0.05419453,127.85,127.82,0.05608283]
[1725408710224,24.03,127.93,127.84,24.03]
[1725408710423,24.03,127.93,127.82,0.05608283]
[1725408710424,24.03,127.92,127.83,24.03]
[1725408710617,24.03,127.9,127.81,25.449]
[1725408710927,24.03,127.9,127.81,29.43634193]
[1725408711127,27.94,127.9,127.84,0.05895414]
[1725408711319,31.85217666,127.9,127.84,0.05895414]
[1725408711719,31.85217666,127.9,127.87,3.9106]
[1725408711928,31.85217666,127.9,127.87,3.96338261]
[1725408712530,24.03,127.92,127.87,0.05278261]
[1725408712733,24.03,127.92,127.88,0.05651941]
[1725408712924,3.9095,127.91,127.89,3.9101]
[1725408713228,24.03,127.92,127.89,3.9101]
[1725408713422,3.9105,127.88,127.85,3.9112]
[1725408714022,7.81601905,127.9,127.87,3.9106]
[1725408714322,3.9101,127.9,127.87,3.9106]
[1725408714524,3.96101636,127.9,127.87,3.96114345]
[1725408715531,7.93490655,127.9,127.87,3.96114345]
[1725408716631,3.96101636,127.9,127.87,3.96114345]
[1725408716833,7.85042227,127.9,127.87,3.96114345]
[1725408717039,7.85042227,127.9,127.88,3.9104]
[1725408717238,3.96101636,127.9,127.88,3.9104]
[1725408717445,0.05091636,127.9,127.89,3.9101]
[1725408719345,0.05091636,127.9,127.88,3.9103]
[1725408719842,0.05091636,127.9,127.87,0.05054345]
[1725408720041,0.05091636,127.9,127.87,3.96104345]
[1725408720235,0.05091636,127.9,127.87,0.05054345]
[1725408720443,0.05091636,127.9,127.88,3.9103]
[1725408721839,0.05091636,127.9,127.87,0.05054345]
[1725408722241,3.95418356,127.9,127.87,0.05054345]
[1725408722440,3.9105,127.88,127.87,0.05054345]
[1725408722746,0.05091636,127.9,127.87,0.05054345]
[1725408722938,3.96101636,127.9,127.87,3.96134345]
[1725408723545,3.9102,127.89,127.87,3.96134345]
[1725408724044,0.05091636,127.9,127.87,3.96134345]
[1725408724236,3.96101636,127.9,127.87,3.96134345]
[1725408724433,0.05091636,127.9,127.88,3.9105]
[1725408725152,0.05091636,127.9,127.87,0.05054345]
[1725408725357,0.05091636,127.9,127.89,3.9101]
[1725408729754,0.05091636,127.9,127.88,3.9103]
[1725408730159,0.05091636,127.9,127.88,3.9105]
[1725408730358,0.05091636,127.9,127.87,0.05054345]
[1725408730755,0.05091636,127.9,127.88,3.9102]
[1725408730949,0.05091636,127.9,127.87,0.05054345]
[1725408731158,3.9102,127.89,127.87,0.05054345]
[1725408731350,0.05091636,127.9,127.87,3.96114345]
[1725408731651,3.87010356,127.9,127.87,0.05054345]
[1725408731859,0.05091636,127.9,127.87,0.05054345]
[1725408732451,3.9104,127.89,127.87,0.05054345]
[1725408732651,4.0054137,127.9,127.87,0.05054345]
[1725408732652,0.05091636,127.9,127.87,0.05054345]
[1725408733758,3.96081636,127.9,127.87,0.05054345]
[1725408734248,3.9104,127.89,127.87,0.05054345]
[1725408734645,3.9104,127.89,127.87,3.96124345]
[1725408735051,3.96081636,127.9,127.87,3.96124345]
[1725408735660,3.9105,127.88,127.87,0.05054345]
[1725408736060,0.05091636,127.9,127.87,0.05054345]
[1725408736359,3.9103,127.89,127.87,0.05054345]
[1725408739470,3.9103,127.89,127.87,3.96114345]
[1725408740557,0.05091636,127.9,127.88,3.83952998]
[1725408741275,0.05091636,127.9,127.89,3.9101]
[1725408742471,0.05091636,127.9,127.89,27.9401]
[1725408745462,227.0,127.99,127.94,3.9083]
[1725408745667,227.0,127.99,127.91,28.01124956]
[1725408745668,3.83540336,127.97,127.91,28.01124956]
[1725408745867,3.9081,127.96,127.91,28.01124956]
[1725408746063,24.03,127.97,127.91,3.98124956]
[1725408746276,24.03,127.97,127.88,26.8186]
[1725408746475,3.9083,127.96,127.91,0.0592066]
[1725408746666,24.03,127.97,127.92,3.909]
[1725408746966,3.9087,127.94,127.91,0.0592066]
[1725408747777,3.9087,127.94,127.91,3.9686066]
[1725408747968,3.9087,127.94,127.91,0.0592066]
[1725408748371,3.9085,127.95,127.92,3.9092]
[1725408750368,3.9085,127.95,127.91,0.0592066]
[1725408751268,3.9085,127.95,127.93,3.9088]
[1725408752072,3.908,127.96,127.94,3.9084]
[1725408752273,24.03,127.97,127.94,0.05984665]
[1725408752578,3.9083,127.95,127.94,0.05984665]
[1725408755877,24.03,127.96,127.86,3.9108]
[1725408756074,24.03,127.92,127.83,27.86715666]
[1725408756283,1.4304,127.94,127.87,24.03]
[1725408756474,3.9091,127.93,127.9,3.9096]
[1725408756778,3.9743655,127.93,127.88,3.82894758]
[1725408757275,0.05790682,127.92,127.9,3.9096]
[1725408758176,0.05790682,127.92,127.91,3.9095]
[1725408761981,0.05790682,127.92,127.91,13.5195]
[1725408767181,0.05790682,127.92,127.91,3.9095]
[1725408768483,0.05790682,127.92,127.91,13.5195]
[1725408770682,0.05790682,127.92,127.9,3.9097]
[1725408770884,0.05790682,127.92,127.89,0.05200587]
[1725408771383,0.05790682,127.92,127.9,3.9096]
[1725408772692,0.05790682,127.92,127.89,3.92012867]
[1725408772693,0.05790682,127.92,127.91,3.9095]
[1725408774892,0.05790682,127.92,127.91,13.5195]
[1725408775584,227.0,128.05,127.91,9.61]
[1725408775784,3.82767492,127.98,127.93,9.61]
[1725408775983,7.73517492,127.98,127.93,9.61]
[1725408776185,7.73517492,127.98,127.95,3.9081]
[1725408776584,7.73517492,127.98,127.95,3.95818282]
[1725408779193,3.82767492,127.98,127.96,3.9079]
[1725408781196,3.82767492,127.98,127.95,0.05008282]
[1725408781493,9.61,128.01,127.95,0.05008282]
[1725408781686,9.61,128.01,127.97,0.05563545]
[1725408781883,2.9065,128.03,127.97,9.66563545]
[1725408782089,3.94116472,128.05,128.01,9.61]
[1725408782287,1.4984,128.08,128.02,9.66621853]
[1725408782489,1.4984,128.08,128.04,0.04980774]
[1725408783597,5.4029,128.08,128.04,0.04980774]
[1725408783799,9.61,128.06,128.04,0.04980774]
[1725408783997,27.9047,128.07,128.04,0.04980774]
[1725408784199,24.0,128.07,128.04,0.04980774]
[1725408784507,24.0,128.07,127.99,27.91149921]
[1725408784890,1.4984,128.08,128.01,24.0]
[1725408785394,0.05948872,128.06,128.03,3.95711628]
[1725408785984,0.05948872,128.06,128.04,3.9055]
[1725408787598,3.96448872,128.06,128.03,3.95711628]
[1725408788707,3.96448872,128.06,128.04,3.9056]
[1725408788905,0.05948872,128.06,128.03,0.05141628]
[1725408791207,0.05948872,128.06,128.04,3.9056]
[1725408791410,0.05948872,128.06,128.03,0.05141628]
[1725408792708,0.05948872,128.06,128.05,3.9053]
[1725408800220,0.05948872,128.06,128.05,27.9053]
[1725408800616,0.05948872,128.06,128.05,31.75865632]
[1725408801518,7.885805,128.11,128.08,3.9043]
[1725408801713,3.982205,128.11,128.05,27.85335632]
[1725408801919,2.7291,128.17,128.12,3.9029]
[1725408802121,3.90919075,128.16,128.12,3.9029]
[1725408802321,3.902,128.16,128.1,27.86506984]
[1725408802625,3.99674081,128.15,128.12,3.95579024]
[1725408803122,3.99674081,128.15,128.12,0.05289024]
[1725408803338,24.0,128.13,128.12,0.05289024]
[1725408804015,3.9028,128.13,128.12,0.05289024]
[1725408804325,7.78713247,128.13,128.12,0.05289024]